Cogmind - Beta 14 @@@ ROGUE MODE // 2024.10.27 @ 19:56:34 Player: KURIIRI Result: Destroyed by D-53 Grenadier with Mini Grenade Launcher Performance ------------- Evolutions (0) 0 Regions Visited (2) 400 Robots Destroyed (28) 140 Value Destroyed (527) 527 Prototype IDs (0) 0 Alien Tech Used (0) 0 Bonus (0) 0 TOTAL SCORE: 1067 Bonus ------- None Cogmind --------- Core Integrity 0/250 Matter 240/300 Energy 250/250 System Corruption 0% Temperature Cool (0) Movement Treading (160) Location -10/Mines Parts ------- > --- POWER (1) -------- Ion Engine > --- PROPULSION (2) --- Light Treads Light Treads > --- UTILITY (2) ------ Large Storage Unit Utility Shielding > --- WEAPON (2) ------- Rocket Launcher Hammer > --- INVENTORY (15) --- Light Ion Engine Light Treads Light Treads Heat Sink Utility Shielding Medium Laser Medium Laser Assault Rifle Rocket Launcher Plasma Cutter Peak State ------------ > --- POWER ------------ Ion Engine > --- PROPULSION ------- Light Treads Light Treads > --- UTILITY ---------- Small Storage Unit Utility Shielding > --- WEAPON ----------- Medium Laser Rocket Launcher > --- INVENTORY -------- Light Ion Engine Light Treads Light Treads Utility Shielding Assault Rifle Rocket Launcher Plasma Cutter Hammer [Rating: 9] Favorites ----------- Power Ion Engine Engine Ion Engine Propulsion Light Treads Treads Light Treads Utility Utility Shielding Storage Small Storage Unit Protection Utility Shielding Weapon Medium Laser Energy Gun Medium Laser Ballistic Gun Assault Rifle Launcher Rocket Launcher Impact Weapon Hammer Build | -11 -10 -10 ------- Run | Yrd Mat Min Slots Evolved . | . . . Power . | . . . Propulsion . | . . . Utility . | . . . Weapon . | . . . Parts Attached 23 | 6 14 3 Power 2 | 1 1 . Engine 2 | 1 1 . Core . | . . . Reactor . | . . . Propulsion 6 | 2 4 . Treads 6 | 2 4 . Leg . | . . . Wheel . | . . . Hover . | . . . Flight . | . . . Utility 3 | 1 2 . Device . | . . . Storage 2 | 1 1 . Processor . | . . . Hackware . | . . . Protection 1 | . 1 . Artifact . | . . . Weapon 12 | 2 7 3 Energy Gun 2 | 1 1 . Energy Cannon . | . . . Ballistic Gun 4 | 1 3 . Ballistic Cannon . | . . . Launcher 5 | . 3 2 Special Weapon . | . . . Impact Weapon 1 | . . 1 Slashing Weapon . | . . . Piercing Weapon . | . . . Special Melee Weapon . | . . . Unidentified Prototypes . | . . . Parts Lost 1 | . 1 . Power 1 | . 1 . Propulsion . | . . . Utility . | . . . Weapon . | . . . Highest Loss Streak 1 | . 1 . To Critical Strikes . | . . . Average Slot Usage (%) 97 | . 96 100 Engine 13 | . 13 14 Treads 28 | . 28 28 Storage 14 | . 14 14 Protection 12 | . 11 14 Energy Gun 13 | . 13 8 Ballistic Gun 10 | . 12 . Launcher 3 | . 1 12 Peak Build Rating 9 | 6 9 9 Average Rating 7 | 4 7 8 On Entrance 4 | . 6 8 Naked Turns . | . . . Heaviest Build 32 | 12 32 32 Greatest Support 40 | 40 40 40 Greatest Overweight (x) . | . . . Average Overweight (x) . | . . . Largest Inventory Capacity 15 | 8 15 15 Average Capacity 10 | 7 10 15 Most Carried 10 | 1 10 10 Average Carried 7 | . 7 10 Final Capacity 15 | 8 15 15 Final Carried 10 | 1 10 10 Class Distribution -------------------- 100% | Mutant Dominant Class ---------------- Mutant | -10/Materials Mutant | -10/Mines Resources | -11 -10 -10 ----------- Run | Yrd Mat Min Matter Collected 624 | 228 396 . Remotely . | . . . Salvage Created 584 | 26 514 44 Parts 52 | . 40 12 Haulers Intercepted 1 | . 1 . Recyclers Shooed . | . . . Parts Field Recycled . | . . . Retrieved Matter . | . . . Parts Self-Destructed . | . . . Prevented . | . . . Kills | -11 -10 -10 ------- Run | Yrd Mat Min Combat Hostiles Destroyed 20 | . 16 4 Melee 1 | . . 1 Guns 8 | . 8 . AOE 11 | . 8 3 Classes Destroyed 9 | 1 6 2 Worker 1 | . 1 . Builder 2 | . . 2 Tunneler 1 | 1 . . Hauler 1 | . 1 . Operator 1 | . 1 . Watcher 3 | . 3 . Swarmer 9 | . 6 3 Grunt 10 | . 10 . Assembled 1 | . . 1 Best Kill Streak 5 | 1 4 5 Combat Bots Only 3 | . 3 3 Max Kills in Single Turn 3 | 1 2 3 Gunslinging . | . . . Exploded 2 | . 2 2 Melee 1 | . . 1 Uniques/NPCs Destroyed . | . . . Combat | -11 -10 -10 -------- Run | Yrd Mat Min Hostile Shots Fired 95 | . 84 11 Missed 24 | . 22 2 Damage Taken 800 | . 573 227 Core 270 | . 104 166 Absorbed by Shields . | . . . Redirected to Shielding 2 | . 2 . Regen/Repaired (Parts) 49 | . 49 . Core Remaining (%) 100 | 100 . . Volleys Fired 68 | 1 63 4 Largest 2 | 2 2 1 Hottest 70 | 70 70 33 Shots Fired 118 | 2 112 4 Gun 106 | 2 104 . Cannon . | . . . Launcher 12 | . 8 4 Special . | . . . Kinetic 50 | 1 49 . Thermal 56 | 1 55 . Explosive 12 | . 8 4 Electromagnetic . | . . . Robot Hit Streak 14 | 1 14 . Robot Miss Streak 6 | 1 6 1 Penetration Max . | . . . Secondary Targets 3 | . 3 . Max Gunslinging Chain 1 | . 1 . Shots Hit Robots 67 | 1 64 2 Core Hits 43 | 1 33 9 Critical Kills 1 | . . 1 Critical Parts Destroyed . | . . . Critical Strikes 1 | . . 1 Smash 1 | . . 1 Melee Attacks 3 | . . 3 Impact 3 | . . 3 Slashing . | . . . Piercing . | . . . Sneak Attacks . | . . . Combat Hostiles . | . . . Follow-up Attacks . | . . . Damage Inflicted 1630 | 12 1296 322 Guns 789 | 12 777 . Cannons . | . . . Explosions 749 | . 510 239 Melee 69 | . . 69 Ramming 23 | . 9 14 Kinetic 356 | . 356 . Thermal 433 | 12 421 . Explosive 749 | . 510 239 Electromagnetic . | . . . Impact 69 | . . 69 Slashing . | . . . Piercing . | . . . Highest Corruption . | . . . Average Corruption . | . . . Corruption Purged . | . . . Corruption Blocked . | . . . Overload Shots . | . . . Overflow Damage 29 | . 19 10 Projectiles . | . . . Explosions 27 | . 19 8 Melee 2 | . . 2 Knockbacks . | . . . Impact . | . . . Kinetic . | . . . Secondary . | . . . Self-Inflicted Damage 70 | . 14 56 Shots 3 | . 1 2 Rammed 5 | . 2 3 Targets Rammed 5 | . 2 3 Kicked . | . . . Crushed . | . . . Highest Temperature 141 | 9 141 . Average Temperature 32 | 6 32 . Received Heat Transfer 126 | . 126 . Siege Activations . | . . . Robots Corrupted . | . . . Combat Hostiles . | . . . Parts Fried . | . . . Impact Corruptions 1 | . . 1 Robots Melted . | . . . Combat Hostiles . | . . . Parts Melted . | . . . Heat Transferred 1295 | 37 1258 . Parts Sabotaged . | . . . Parts Stolen . | . . . Parts Stripped . | . . . Power Chain Reactions . | . . . Alert | -11 -10 -10 ------- Run | Yrd Mat Min Peak Influence 370 | 5 370 234 Initial 100 | . 3 100 Average 197 | . 208 203 Maximum Alert Level 1 | . 1 1 Low Security (%) 37 | 100 40 7 Level 1 62 | . 59 92 Level 2 . | . . . Level 3 . | . . . Level 4 . | . . . Level 5 . | . . . High Security . | . . . Max Security . | . . . Squads Dispatched 7 | . 7 . Investigation 5 | . 5 . Extermination . | . . . Reinforcement 2 | . 2 . Assault . | . . . Garrison . | . . . Intercept . | . . . Searches Triggered . | . . . Construction Impeded . | . . . Haulers Reinforced . | . . . Active Scanning Responses . | . . . Cargo Convoy Interrupts . | . . . Stealth | -11 -10 -10 --------- Run | Yrd Mat Min Distress Signals 3 | . 3 . Communications Jammed . | . . . Distress Signals . | . . . Times Spotted 28 | . 23 5 Peak Tracking Total 4 | . 4 3 Tactical Retreats 2 | . 2 . Traps | -11 -10 -10 ------- Run | Yrd Mat Min Traps Triggered 1 | . 1 . Indirectly . | . . . Trap Hack Attempts . | . . . Triggered . | . . . Disarmed . | . . . Reprogrammed . | . . . Reused . | . . . Traps Extracted . | . . . Installed . | . . . Triggered . | . . . Machines | -11 -10 -10 ---------- Run | Yrd Mat Min Machines Disabled . | . . . Max in Single Turn . | . . . Machines Repaired . | . . . Machines Dismantled . | . . . Machines Sabotaged . | . . . Overloaded Fab Kills . | . . . Hacking | -11 -10 -10 --------- Run | Yrd Mat Min Machines Accessed 6 | . 6 . Terminals 3 | . 3 . Fabricators . | . . . Repair Stations 1 | . 1 . Recycling Units 2 | . 2 . Scanalyzers . | . . . Garrison Access . | . . . Total Hacks 17 | . 17 . Successful 10 | . 10 . Failed 7 | . 7 . Catastrophic . | . . . Database Lockouts . | . . . Manual 11 | . 11 . Terminals 13 | . 13 . Fabricators . | . . . Repair Stations 2 | . 2 . Recycling Units 2 | . 2 . Scanalyzers . | . . . Garrison Access . | . . . Terminal Hacks 2 | . 2 . Robot Analysis 2 | . 2 . Fabricator Hacks . | . . . Repair Station Hacks 2 | . 2 . Scan Component 1 | . 1 . Repair 1 | . 1 . Recycling Unit Hacks . | . . . Scanalyzer . | . . . Garrison Access Hacks . | . . . Unauthorized Hacks 6 | . 6 . Terminals 4 | . 4 . Botnet 3 | . 3 . Skim 1 | . 1 . Fabricators . | . . . Repair Stations . | . . . Recycling Units 2 | . 2 . Tunnel 2 | . 2 . Scanalyzers . | . . . Garrison Access . | . . . Data Cores Recovered . | . . . Used . | . . . Hacking Detections 4 | . 4 . Full Trace Events 3 | . 3 . Feedback Events . | . . . Feedback Blocked . | . . . Robot Schematics Acquired . | . . . Robots Built . | . . . Authchips . | . . . Time . | . . . Total Robot Build Rating . | . . . Part Schematics Acquired . | . . . Parts Built . | . . . Authchips . | . . . Time . | . . . Total Part Build Rating . | . . . Parts Repaired 1 | . 1 . Time 13 | . 13 . Parts Recycled . | . . . Recycled Matter . | . . . Retrieved Matter . | . . . Retrieved Components . | . . . Parts Scanalyzed . | . . . Part Schematics Acquired . | . . . Parts Damaged . | . . . Bothacking | -11 -10 -10 ------------ Run | Yrd Mat Min Used RIF Installer . | . . . Robots Hacked . | . . . Non-combat . | . . . Combat . | . . . Robot Hacks Applied . | . . . Relay Couplers Released . | . . . Fabnet Peak Effective % . | . . . Robots Rewired . | . . . Allies Hacked . | . . . Hacks Repelled . | . . . Allies | -11 -10 -10 -------- Run | Yrd Mat Min Total Allies . | . . . Largest Group . | . . . Highest-Rated Group . | . . . Highest-Rated Ally . | . . . Total Orders . | . . . Ally Attacks . | . . . Total Damage . | . . . Kills . | . . . Allies Corrupted . | . . . Allies Melted . | . . . Intel | -11 -10 -10 ------- Run | Yrd Mat Min Robot Analysis Total 2 | . 2 . Derelict Logs Recovered 1 | . . 1 Drone Launches . | . . . Drone Recoveries . | . . . Exploration | -11 -10 -10 ------------- Run | Yrd Mat Min Turns Passed 1957 | 91 1542 324 Spaces Moved 871 | 48 637 186 Core 2 | 2 . . Treads 869 | 46 637 186 Legs . | . . . Wheels . | . . . Hover . | . . . Flight . | . . . Fastest Speed 50 | 50 160 160 Average Speed 159 | 155 160 160 Slowest Speed 160 | 160 160 160 Overloaded Moves . | . . . Propulsion Burnouts . | . . . Robots Hopped . | . . . Cave-ins Triggered . | . . . Exploration Rate (%) 43 | 5 92 33 Regions Visited 2 Branch Regions 1 Pre-discovered Areas 2 | . 2 . Known Exits Taken . | . . . Unknown Exits Taken 2 | 1 1 . Scrap Searched . | . . . Spaces Dug 9 | . . 9 Terrain Destroyed 92 | . 50 42 Melee . | . . . Projectile . | . . . AOE 92 | . 50 42 Terrain Rammed . | . . . Walls Destroyed . | . . . Machines Disabled . | . . . Actions | -11 -10 -10 --------- Run | Yrd Mat Min Total 1306 | 60 1045 201 Wait 317 | 5 310 2 Move 869 | 47 636 186 Hop . | . . . Pick Up 15 | 1 14 . Fast Attach 9 | 6 3 . Attach . | . . . Detach . | . . . Swap 14 | . 11 3 Drop 6 | . 6 . Fire 68 | 1 63 4 Melee 3 | . . 3 Ram . | . . . Kick . | . . . Crush 5 | . 2 3 Escape Stasis . | . . . Rewire . | . . . Trap . | . . . Miscellaneous . | . . . Route ------- -11/Scrapyard -10/Materials (discovered 4 exits: [*Mat x2] / [*Min x2]) -10/Mines (discovered 1 exit: [*Mat]) History --------- Turn | Location | Event 43 | -11/Scrapyard | Discovered new exit (range 16) 92 | -11/Scrapyard | Entered Materials 300 | -10/Materials | Build established: Mutant 663 | -10/Materials | Discovered new exit (range 12) 896 | -10/Materials | Discovered new exit (range 16) 1128 | -10/Materials | Discovered new exit (range 16) 1226 | -10/Materials | Repaired Med. Laser 1243 | -10/Materials | Discovered new exit (range 12) 1634 | -10/Materials | Entered Mines 1649 | -10/Mines | Discovered new exit (range 9) 1656 | -10/Mines | Core integrity fell below 50% 1703 | -10/Mines | Assembled infested the area 1708 | -10/Mines | Assisted by a Guerilla fighting off Assembled 1826 | -10/Mines | Core integrity fell below 20% 1958 | -10/Mines | Destroyed by D-53 Grenadier with Mini Grenade Launcher Last Messages --------------- 01697_ K-01 Serf collects debris. 01703_ ALERT: Infestation in the mines, dispatching Demolisher response squad. 01708_ A derelict emerges from the shadows: "You need to get out of here! I've been tracking a group of Assembled to figure out where they're coming from, and they're closing on this area, come on!" 01755_ T-07 Excavator is excavating. 01759_ Slammed into U-05 Engineer. 01759_ T-07 Excavator is excavating. 01762_ Slammed into U-05 Engineer. 01768_ Slammed into T-07 Excavator. 01821_ Destroyed Asb. Hover Unit. 01821_ as-39239 system corrupted by crushing effect. 01827_ as-39239 suffers critical hit (Smash). 01827_ as-39239 destroyed. 01922_ K-01 Serf collects debris. 01957_ The unstable cave ceiling collapses. Map ----- +----------------------------------------------------+ | ?????????????????????????????????????????????????? | | ?????????????????????????????????????????????????? | | ?????????????????????????????????????????????????? | | ?????????????????????????????????????????????????? | | ?????????????????????????????????????????????????? | | ?????????????????????????????????????????????????? | | ?????????????????????????????????????????????????? | | ?????????????????????????????????????????????????? | | ?????????????????????????????????????????????????? | | ?#???????????????????????????????????????????????? | | ?# ???????????????####???????????????????????????? | | ?# #????#####???## #???????????????????????????? | | ## ##### ##?## #??????????####?????????????? | | # ### #???????????# ##????????????? | | ## #????????????# #????????????? | | #### ### #???????????## #????????????? | | #??#### #?## #??????????## ##????????????? | | #?????# #??## #??????????# ##?????????????? | | #?????# #???# ##??????????# #??????????????? | | #?????# #???# d #??######?## ##??????????????? | | #?????# #????# ### ### ##??????????????? | | #?????# #?????# # ##?????????????? | | ??????#%#??????# ##????????????? | | ??????# #???????# ##???????????? | | ??????# #???????# ####????????? | | ??????# #???????# @ ## #####????? | | ??##### #??????# k #### ##??## | | ??# #?????# ## #??##### ### | | ??# #####??? #######??????## | | ??# #????? #?????????????##### | | ### ###??## ### ##?????????????????##### | | #???## #??####??????????????????????##### | | ##### #????# ?????????????????????????????????? | | ????# #????## ?????????????????????????????????? | | ????# #?????# ??????????????????????????????????? | | # ## ##????##???????????????????????????????????? | | #?????????????????????????????????????????? | | ##?????????????????????????????????????????? | | # ##??????????????????????????????????????????? | | ## ????????????????????????????????????????????? | | ?####????????????????????????????????????????????? | | ?????????????????????????????????????????????????? | | ?????????????????????????????????????????????????? | | ?????????????????????????????????????????????????? | | ?????????????????????????????????????????????????? | | ?????????????????????????????????????????????????? | | ?????????????????????????????????????????????????? | | ?????????????????????????????????????????????????? | | ?????????????????????????????????????????????????? | | ?????????????????????????????????????????????????? | +----------------------------------------------------+ Best States ------------- Heat Dissipation 25 Energy Generation 10 Energy Capacity 250 Matter Stores 300 Matter Capacity 300 Sight Range 16 Terrain Scan Density 10 Utility Shielding 33 Evasion (%) 40 Recoil Reduction 2 Item Schematics ----------------- None Robot Schematics ------------------ None Fabricated ------------ Nothing Alien Tech Used ----------------- None Achievements -------------- None Challenges ------------ None Game ------ Seed AutogunHelicalBoomstick Manual? 0 Play Time 00:11:00 Cumulative 148.5 hours Start 2024.10.27 @ 19:47:14 End 2024.10.27 @ 19:56:34 Sessions 1 Manual Loads 0 Difficulty Rogue Special Mode None Game No. 96 Rogue 60 Adventurer 36 Explorer 0 Win Type - Total 3 Types 2/0/0/1/0/0/0/0/0 Lore% 55 Gallery% 63 Achievement% 55 Wizard Run 0 Options --------- Layout 1 ASCII 0 Keyboard 0 Movement Numpad Keybinds 0 Fullscreen 1 Font 48/Smallcaps Map View 50x35 Zoom Use 0% Tactical HUD 1 Map Filters NONE Filters NONE Steam 1 RUN: d48d8b48-112f-49fd-8992-642af116329b